[Event "Titled Tuesday Blitz March 14 Early 2023"]
[White "Zhigalko, Sergei"]
[Black "Gontcharov, Vladislav"]
[WhiteFideId "13502956"]
[BlackFideId "4123492"]
[WhiteElo "2626"]
[BlackElo "2470"]
[Result "1-0"]
[Round "11"]
[TimeControl "180+2"]
[Date "2023.03.14"]
[WhiteClock "0:00:04"]
[BlackClock "0:00:02"]

1. e4 {[%clk 0:03:00]}  e6 {[%clk 0:02:59]} 2. d4 {[%clk 0:03:00]}  d5 {[%clk 0:03:00]} 3. e5 {[%clk 0:03:00]}  c5 {[%clk 0:03:00]} 4. c3 {[%clk 0:03:01]}  Nc6 {[%clk 0:03:00]} 5. Nf3 {[%clk 0:03:01]}  Nge7 {[%clk 0:03:00]} 6. Na3 {[%clk 0:03:01]}  cxd4 {[%clk 0:02:59]} 7. cxd4 {[%clk 0:03:01]}  Nf5 {[%clk 0:03:00]} 8. Nc2 {[%clk 0:03:01]}  Nh4 {[%clk 0:03:00]} 9. a3 {[%clk 0:02:42]}  Bd7 {[%clk 0:02:40]} 10. Nxh4 {[%clk 0:02:19]}  Qxh4 {[%clk 0:02:39]} 11. g3 {[%clk 0:02:19]}  Qe4+ {[%clk 0:02:35]} 12. Qe2 {[%clk 0:02:02]}  Qxh1 {[%clk 0:02:34]} 13. f3 {[%clk 0:02:02]}  Rc8 {[%clk 0:02:10]} 14. Be3 {[%clk 0:01:55]}  Na5 {[%clk 0:02:08]} 15. O-O-O {[%clk 0:01:54]}  Ba4 {[%clk 0:01:55]} 16. Qb5+ {[%clk 0:01:54]}  Bxb5 {[%clk 0:01:50]} 17. Bxb5+ {[%clk 0:01:55]}  Kd8 {[%clk 0:01:47]} 18. Rxh1 {[%clk 0:01:56]}  a6 {[%clk 0:01:42]} 19. Bd3 {[%clk 0:01:53]}  Nc4 {[%clk 0:01:40]} 20. Bf2 {[%clk 0:01:50]}  Be7 {[%clk 0:01:38]} 21. f4 {[%clk 0:01:46]}  g6 {[%clk 0:01:36]} 22. Rd1 {[%clk 0:01:38]}  Kd7 {[%clk 0:01:33]} 23. Kb1 {[%clk 0:01:38]}  Rc7 {[%clk 0:01:32]} 24. Na1 {[%clk 0:01:28]}  Rhc8 {[%clk 0:01:29]} 25. Nb3 {[%clk 0:01:27]}  b6 {[%clk 0:01:28]} 26. Bg1 {[%clk 0:01:22]}  a5 {[%clk 0:01:26]} 27. Bf2 {[%clk 0:01:23]}  a4 {[%clk 0:01:21]} 28. Na1 {[%clk 0:01:21]}  b5 {[%clk 0:01:08]} 29. Nc2 {[%clk 0:01:20]}  b4 {[%clk 0:00:57]} 30. axb4 {[%clk 0:01:16]}  Rb8 {[%clk 0:00:56]} 31. Be1 {[%clk 0:01:16]}  a3 {[%clk 0:00:50]} 32. bxa3 {[%clk 0:01:09]}  Ra7 {[%clk 0:00:43]} 33. Bxc4 {[%clk 0:00:47]}  dxc4 {[%clk 0:00:42]} 34. d5 {[%clk 0:00:48]}  exd5 {[%clk 0:00:39]} 35. Rxd5+ {[%clk 0:00:48]}  Ke8 {[%clk 0:00:39]} 36. Kb2 {[%clk 0:00:41]}  Rd7 {[%clk 0:00:38]} 37. Rxd7 {[%clk 0:00:33]}  Kxd7 {[%clk 0:00:37]} 38. Kc3 {[%clk 0:00:34]}  f6 {[%clk 0:00:35]} 39. exf6 {[%clk 0:00:25]}  Bxf6+ {[%clk 0:00:34]} 40. Kxc4 {[%clk 0:00:25]}  Rc8+ {[%clk 0:00:30]} 41. Kd3 {[%clk 0:00:26]}  Kd6 {[%clk 0:00:29]} 42. b5 {[%clk 0:00:19]}  Kc5 {[%clk 0:00:27]} 43. a4 {[%clk 0:00:09]}  Rd8+ {[%clk 0:00:26]} 44. Ke4 {[%clk 0:00:05]}  Ra8 {[%clk 0:00:20]} 45. Bb4+ {[%clk 0:00:02]}  Kc4 {[%clk 0:00:20]} 46. b6 {[%clk 0:00:03]}  Re8+ {[%clk 0:00:13]} 47. Kf3 {[%clk 0:00:02]}  Kb3 {[%clk 0:00:13]} 48. Bd6 {[%clk 0:00:03]}  Kxc2 {[%clk 0:00:06]} 49. b7 {[%clk 0:00:03]}  Kb3 {[%clk 0:00:06]} 50. a5 {[%clk 0:00:03]}  Bd4 {[%clk 0:00:03]} 51. b8=Q+ {[%clk 0:00:03]}  Rxb8 {[%clk 0:00:02]} 52. Bxb8 {[%clk 0:00:04]} 1-0


[Site "https://www.chess.com"]

[Event "Titled Tuesday Blitz March 14 Early 2023"]
[White "Starozhilov, Leonid"]
[Black "Costachi, Mihnea"]
[WhiteFideId "14106752"]
[BlackFideId "1217518"]
[WhiteElo "2402"]
[BlackElo "2456"]
[Result "0-1"]
[Round "11"]
[TimeControl "180+2"]
[Date "2023.03.14"]
[WhiteClock "0:00:20"]
[BlackClock "0:00:48"]

1. e4 {[%clk 0:03:00]}  e5 {[%clk 0:02:59]} 2. Nf3 {[%clk 0:03:01]}  Nc6 {[%clk 0:03:00]} 3. Bb5 {[%clk 0:03:01]}  a6 {[%clk 0:03:00]} 4. Bxc6 {[%clk 0:03:01]}  dxc6 {[%clk 0:03:00]} 5. h3 {[%clk 0:03:02]}  f6 {[%clk 0:02:57]} 6. d4 {[%clk 0:03:01]}  exd4 {[%clk 0:02:57]} 7. Qxd4 {[%clk 0:03:02]}  Qxd4 {[%clk 0:02:56]} 8. Nxd4 {[%clk 0:03:03]}  Bd7 {[%clk 0:02:56]} 9. Nc3 {[%clk 0:03:00]}  O-O-O {[%clk 0:02:56]} 10. Be3 {[%clk 0:03:00]}  Ne7 {[%clk 0:02:56]} 11. O-O-O {[%clk 0:03:00]}  Ng6 {[%clk 0:02:56]} 12. Nde2 {[%clk 0:02:49]}  Be7 {[%clk 0:02:48]} 13. Rd2 {[%clk 0:02:25]}  f5 {[%clk 0:02:45]} 14. exf5 {[%clk 0:02:11]}  Bxf5 {[%clk 0:02:44]} 15. Rxd8+ {[%clk 0:02:08]}  Rxd8 {[%clk 0:02:43]} 16. Rd1 {[%clk 0:02:01]}  Re8 {[%clk 0:02:43]} 17. Ng3 {[%clk 0:01:55]}  Be6 {[%clk 0:02:35]} 18. Nh5 {[%clk 0:01:54]}  Bf8 {[%clk 0:02:29]} 19. Bd4 {[%clk 0:01:45]}  Nh4 {[%clk 0:02:22]} 20. Bxg7 {[%clk 0:01:38]}  Be7 {[%clk 0:02:04]} 21. Bf6 {[%clk 0:01:38]}  Bxf6 {[%clk 0:01:59]} 22. Nxf6 {[%clk 0:01:37]}  Rf8 {[%clk 0:02:00]} 23. Nxh7 {[%clk 0:01:18]}  Rxf2 {[%clk 0:02:00]} 24. g3 {[%clk 0:00:54]}  Nf3 {[%clk 0:01:50]} 25. Ng5 {[%clk 0:00:52]}  Nxg5 {[%clk 0:01:50]} 26. h4 {[%clk 0:00:42]}  Nf3 {[%clk 0:01:43]} 27. Ne4 {[%clk 0:00:41]}  Re2 {[%clk 0:01:31]} 28. Nc5 {[%clk 0:00:41]}  Bf5 {[%clk 0:01:29]} 29. Nd3 {[%clk 0:00:39]}  Rg2 {[%clk 0:01:24]} 30. Rh1 {[%clk 0:00:30]}  Nd4 {[%clk 0:01:18]} 31. Ne1 {[%clk 0:00:29]}  Rxg3 {[%clk 0:01:18]} 32. h5 {[%clk 0:00:29]}  Rg7 {[%clk 0:01:11]} 33. h6 {[%clk 0:00:29]}  Rh7 {[%clk 0:01:11]} 34. Rh5 {[%clk 0:00:28]}  Bg6 {[%clk 0:01:10]} 35. Rh3 {[%clk 0:00:26]}  Nf5 {[%clk 0:01:09]} 36. Nd3 {[%clk 0:00:24]}  Rxh6 {[%clk 0:01:09]} 37. Rf3 {[%clk 0:00:25]}  Rh2 {[%clk 0:00:56]} 38. Ne5 {[%clk 0:00:24]}  Bh7 {[%clk 0:00:57]} 39. b4 {[%clk 0:00:20]}  Rxc2+ {[%clk 0:00:55]} 40. Kxc2 {[%clk 0:00:19]}  Nd4+ {[%clk 0:00:56]} 41. Kc3 {[%clk 0:00:20]}  Nxf3 {[%clk 0:00:56]} 42. Nxf3 {[%clk 0:00:21]}  Kd7 {[%clk 0:00:55]} 43. Ng5 {[%clk 0:00:20]}  Bg8 {[%clk 0:00:49]} 44. Ne4 {[%clk 0:00:20]}  Bxa2 {[%clk 0:00:47]} 45. Nc5+ {[%clk 0:00:19]}  Kc8 {[%clk 0:00:48]} 46. Nxb7 {[%clk 0:00:20]}  Kxb7 {[%clk 0:00:48]} 0-1


[Site "https://www.chess.com"]

[Event "Titled Tuesday Blitz March 14 Early 2023"]
[White "Smirnov, Pavel"]
[Black "Weetik, Vjacheslav"]
[WhiteFideId "4123425"]
[BlackFideId "4153472"]
[WhiteElo "2519"]
[BlackElo "2469"]
[Result "1-0"]
[Round "11"]
[TimeControl "180+2"]
[Date "2023.03.14"]
[WhiteClock "0:00:16"]
[BlackClock "0:00:03"]

1. d4 {[%clk 0:03:00]}  d5 {[%clk 0:02:59]} 2. c4 {[%clk 0:03:00]}  e6 {[%clk 0:02:59]} 3. Nf3 {[%clk 0:03:01]}  Nf6 {[%clk 0:02:58]} 4. g3 {[%clk 0:03:01]}  dxc4 {[%clk 0:02:52]} 5. Bg2 {[%clk 0:03:02]}  c5 {[%clk 0:02:52]} 6. O-O {[%clk 0:03:02]}  Nc6 {[%clk 0:02:53]} 7. dxc5 {[%clk 0:03:02]}  Qxd1 {[%clk 0:02:51]} 8. Rxd1 {[%clk 0:03:03]}  Bxc5 {[%clk 0:02:51]} 9. Nbd2 {[%clk 0:03:04]}  c3 {[%clk 0:02:52]} 10. bxc3 {[%clk 0:03:05]}  O-O {[%clk 0:02:50]} 11. Nb3 {[%clk 0:03:05]}  Be7 {[%clk 0:02:48]} 12. Nfd4 {[%clk 0:03:06]}  Bd7 {[%clk 0:02:36]} 13. Nb5 {[%clk 0:03:04]}  Rfc8 {[%clk 0:02:08]} 14. Be3 {[%clk 0:02:59]}  Nd5 {[%clk 0:01:53]} 15. c4 {[%clk 0:02:55]}  Nxe3 {[%clk 0:01:46]} 16. Rxd7 {[%clk 0:02:54]}  Nxg2 {[%clk 0:01:28]} 17. Kxg2 {[%clk 0:02:50]}  a6 {[%clk 0:01:01]} 18. Nc3 {[%clk 0:02:47]}  Bf6 {[%clk 0:00:59]} 19. Rc1 {[%clk 0:02:46]}  b6 {[%clk 0:00:35]} 20. Ne4 {[%clk 0:02:45]}  Ne5 {[%clk 0:00:34]} 21. Nxf6+ {[%clk 0:02:40]}  gxf6 {[%clk 0:00:34]} 22. Rd4 {[%clk 0:02:41]}  Rc7 {[%clk 0:00:27]} 23. f4 {[%clk 0:02:38]}  Ng4 {[%clk 0:00:15]} 24. Kf3 {[%clk 0:02:35]}  Nxh2+ {[%clk 0:00:14]} 25. Kg2 {[%clk 0:02:32]}  Ng4 {[%clk 0:00:15]} 26. e4 {[%clk 0:02:30]}  Rac8 {[%clk 0:00:14]} 27. Kf3 {[%clk 0:02:29]}  Nh2+ {[%clk 0:00:13]} 28. Ke2 {[%clk 0:02:29]}  Ng4 {[%clk 0:00:14]} 29. Nd2 {[%clk 0:02:27]}  b5 {[%clk 0:00:12]} 30. Kf3 {[%clk 0:02:15]}  h5 {[%clk 0:00:12]} 31. Rh1 {[%clk 0:02:12]}  bxc4 {[%clk 0:00:09]} 32. Rxh5 {[%clk 0:02:12]}  c3 {[%clk 0:00:10]} 33. Nb3 {[%clk 0:02:11]}  f5 {[%clk 0:00:08]} 34. exf5 {[%clk 0:02:11]}  Nf6 {[%clk 0:00:08]} 35. Rg5+ {[%clk 0:02:10]}  Kf8 {[%clk 0:00:09]} 36. fxe6 {[%clk 0:02:09]}  c2 {[%clk 0:00:08]} 37. Nc1 {[%clk 0:02:03]}  fxe6 {[%clk 0:00:08]} 38. Re5 {[%clk 0:01:58]}  Kf7 {[%clk 0:00:07]} 39. Rd6 {[%clk 0:01:56]}  Re7 {[%clk 0:00:04]} 40. Rxa6 {[%clk 0:01:50]}  Rc3+ {[%clk 0:00:04]} 41. Kg2 {[%clk 0:01:49]}  Nd5 {[%clk 0:00:03]} 42. Kf2 {[%clk 0:01:35]}  Nb4 {[%clk 0:00:03]} 43. Rd6 {[%clk 0:01:34]}  Ra7 {[%clk 0:00:02]} 44. Rexe6 {[%clk 0:01:05]}  Nxa2 {[%clk 0:00:02]} 45. Rf6+ {[%clk 0:01:05]}  Kg7 {[%clk 0:00:03]} 46. Rg6+ {[%clk 0:01:04]}  Kf7 {[%clk 0:00:03]} 47. Rgf6+ {[%clk 0:00:53]}  Kg7 {[%clk 0:00:04]} 48. Rg6+ {[%clk 0:00:54]}  Kf7 {[%clk 0:00:04]} 49. Ne2 {[%clk 0:00:40]}  c1=Q {[%clk 0:00:04]} 50. Nxc1 {[%clk 0:00:40]}  Nxc1 {[%clk 0:00:04]} 51. Kg2 {[%clk 0:00:33]}  Nd3 {[%clk 0:00:04]} 52. Rdf6+ {[%clk 0:00:29]}  Ke7 {[%clk 0:00:04]} 53. Kh3 {[%clk 0:00:29]}  Rd7 {[%clk 0:00:04]} 54. Kh4 {[%clk 0:00:25]}  Nf2 {[%clk 0:00:04]} 55. f5 {[%clk 0:00:22]}  Re3 {[%clk 0:00:04]} 56. Ra6 {[%clk 0:00:19]}  Ne4 {[%clk 0:00:03]} 57. Rg7+ {[%clk 0:00:16]} 1-0


[Site "https://www.chess.com"]

[Event "Titled Tuesday Blitz March 14 Early 2023"]
[White "EREBUNI91"]
[Black "Bews, Steven"]
[BlackFideId "2400529"]
[WhiteElo "2768"]
[BlackElo "2627"]
[Result "0-1"]
[Round "11"]
[TimeControl "180+2"]
[Date "2023.03.14"]
[WhiteClock "0:00:06"]
[BlackClock "0:01:19"]

1. e4 {[%clk 0:03:00]}  c5 {[%clk 0:02:58]} 2. Nc3 {[%clk 0:03:00]}  d6 {[%clk 0:02:57]} 3. d4 {[%clk 0:03:00]}  cxd4 {[%clk 0:02:56]} 4. Qxd4 {[%clk 0:03:01]}  Nc6 {[%clk 0:02:56]} 5. Qd2 {[%clk 0:03:01]}  g6 {[%clk 0:02:55]} 6. b3 {[%clk 0:03:01]}  Bh6 {[%clk 0:02:55]} 7. f4 {[%clk 0:03:02]}  Nf6 {[%clk 0:02:51]} 8. Bb2 {[%clk 0:03:01]}  O-O {[%clk 0:02:49]} 9. O-O-O {[%clk 0:03:01]}  e5 {[%clk 0:02:48]} 10. g3 {[%clk 0:03:01]}  exf4 {[%clk 0:02:29]} 11. Bg2 {[%clk 0:03:00]}  Bg4 {[%clk 0:02:23]} 12. Nf3 {[%clk 0:02:50]}  Ne5 {[%clk 0:02:17]} 13. Rdf1 {[%clk 0:02:45]}  Rc8 {[%clk 0:02:09]} 14. gxf4 {[%clk 0:02:44]}  Nh5 {[%clk 0:01:40]} 15. Qe2 {[%clk 0:00:01]}  Nxf4 {[%clk 0:01:39]} 16. Qf2 {[%clk 0:00:01]}  Nfd3+ {[%clk 0:01:38]} 17. Kb1 {[%clk 0:00:02]}  Nxf2 {[%clk 0:01:39]} 18. Rxf2 {[%clk 0:00:02]}  Nxf3 {[%clk 0:01:37]} 19. Bxf3 {[%clk 0:00:03]}  Bxf3 {[%clk 0:01:37]} 20. Rxf3 {[%clk 0:00:04]}  Bg7 {[%clk 0:01:38]} 21. Nd5 {[%clk 0:00:04]}  Bxb2 {[%clk 0:01:38]} 22. Kxb2 {[%clk 0:00:05]}  Re8 {[%clk 0:01:34]} 23. h4 {[%clk 0:00:06]}  Rxe4 {[%clk 0:01:33]} 24. Nf6+ {[%clk 0:00:06]}  Kg7 {[%clk 0:01:33]} 25. Nxe4 {[%clk 0:00:07]}  Qe7 {[%clk 0:01:31]} 26. Ng5 {[%clk 0:00:07]}  f6 {[%clk 0:01:26]} 27. Nh3 {[%clk 0:00:07]}  Qe4 {[%clk 0:01:20]} 28. Rhf1 {[%clk 0:00:07]}  Rxc2+ {[%clk 0:01:19]} 29. Ka1 {[%clk 0:00:06]}  Qd4+ {[%clk 0:01:19]} 0-1


[Site "https://www.chess.com"]

[Event "Titled Tuesday Blitz March 14 Early 2023"]
[White "Safin, Robert"]
[Black "Tanenbaum, Zachary"]
[WhiteFideId "34189120"]
[BlackFideId "2060850"]
[WhiteElo "2245"]
[BlackElo "2175"]
[Result "0-1"]
[Round "11"]
[TimeControl "180+2"]
[Date "2023.03.14"]
[WhiteClock "0:00:09"]
[BlackClock "0:00:17"]

1. e4 {[%clk 0:02:54]}  e5 {[%clk 0:03:00]} 2. Nf3 {[%clk 0:02:53]}  Nc6 {[%clk 0:03:01]} 3. d4 {[%clk 0:02:52]}  exd4 {[%clk 0:03:01]} 4. Nxd4 {[%clk 0:02:53]}  Bc5 {[%clk 0:03:01]} 5. Nb3 {[%clk 0:02:52]}  Bb6 {[%clk 0:03:00]} 6. Qe2 {[%clk 0:02:53]}  Nf6 {[%clk 0:03:00]} 7. Be3 {[%clk 0:02:42]}  O-O {[%clk 0:02:57]} 8. Nc3 {[%clk 0:02:41]}  Re8 {[%clk 0:02:54]} 9. f3 {[%clk 0:02:37]}  d5 {[%clk 0:02:51]} 10. O-O-O {[%clk 0:02:36]}  Be6 {[%clk 0:01:38]} 11. g4 {[%clk 0:02:30]}  d4 {[%clk 0:01:35]} 12. g5 {[%clk 0:01:52]}  Bxb3 {[%clk 0:01:33]} 13. gxf6 {[%clk 0:01:19]}  Qxf6 {[%clk 0:01:21]} 14. axb3 {[%clk 0:01:08]}  dxc3 {[%clk 0:00:55]} 15. Bh3 {[%clk 0:00:56]}  Nb4 {[%clk 0:00:29]} 16. Kb1 {[%clk 0:00:36]}  Bxe3 {[%clk 0:00:21]} 17. Qxe3 {[%clk 0:00:36]}  Qa6 {[%clk 0:00:22]} 18. Qxc3 {[%clk 0:00:32]}  Qa2+ {[%clk 0:00:21]} 19. Kc1 {[%clk 0:00:32]}  Rad8 {[%clk 0:00:21]} 20. Bd7 {[%clk 0:00:09]}  Qa1+ {[%clk 0:00:19]} 21. Kd2 {[%clk 0:00:09]}  Rxd7+ {[%clk 0:00:19]} 22. Ke2 {[%clk 0:00:10]}  Qa6+ {[%clk 0:00:17]} 23. Kf2 {[%clk 0:00:09]}  Qb6+ {[%clk 0:00:17]} 0-1


[Site "https://www.chess.com"]

[Event "Titled Tuesday Blitz March 14 Early 2023"]
[White "littlepillow2010"]
[Black "Samant Aditya S"]
[BlackFideId "35080580"]
[WhiteElo "2438"]
[BlackElo "2362"]
[Result "0-1"]
[Round "11"]
[TimeControl "180+2"]
[Date "2023.03.14"]
[WhiteClock "0:00:49"]
[BlackClock "0:01:31"]

1. e4 {[%clk 0:03:00]}  c5 {[%clk 0:03:00]} 2. Nf3 {[%clk 0:03:00]}  d6 {[%clk 0:03:00]} 3. d4 {[%clk 0:03:01]}  cxd4 {[%clk 0:03:01]} 4. Nxd4 {[%clk 0:03:02]}  Nf6 {[%clk 0:03:02]} 5. Nc3 {[%clk 0:03:02]}  e5 {[%clk 0:03:03]} 6. Nb3 {[%clk 0:02:55]}  Be6 {[%clk 0:02:56]} 7. f3 {[%clk 0:02:50]}  Be7 {[%clk 0:02:54]} 8. Be3 {[%clk 0:02:50]}  Nc6 {[%clk 0:02:52]} 9. Nd5 {[%clk 0:02:45]}  O-O {[%clk 0:02:31]} 10. c4 {[%clk 0:02:38]}  a5 {[%clk 0:02:30]} 11. Be2 {[%clk 0:02:24]}  a4 {[%clk 0:02:26]} 12. Nd2 {[%clk 0:02:24]}  Nd7 {[%clk 0:02:18]} 13. O-O {[%clk 0:02:22]}  Bg5 {[%clk 0:02:17]} 14. Bf2 {[%clk 0:02:11]}  Nc5 {[%clk 0:02:08]} 15. Nb1 {[%clk 0:02:09]}  Bxd5 {[%clk 0:01:44]} 16. Qxd5 {[%clk 0:01:51]}  Nd4 {[%clk 0:01:44]} 17. Bxd4 {[%clk 0:01:41]}  exd4 {[%clk 0:01:44]} 18. Qxd4 {[%clk 0:01:42]}  Bf6 {[%clk 0:01:45]} 19. Qd2 {[%clk 0:01:42]}  Qb6 {[%clk 0:01:46]} 20. Kh1 {[%clk 0:01:33]}  Qxb2 {[%clk 0:01:45]} 21. Qxb2 {[%clk 0:01:19]}  Bxb2 {[%clk 0:01:46]} 22. Nd2 {[%clk 0:01:20]}  Bxa1 {[%clk 0:01:46]} 23. Rxa1 {[%clk 0:01:21]}  f5 {[%clk 0:01:41]} 24. exf5 {[%clk 0:01:18]}  Rxf5 {[%clk 0:01:42]} 25. Ne4 {[%clk 0:01:15]}  Nxe4 {[%clk 0:01:40]} 26. fxe4 {[%clk 0:01:16]}  Rf2 {[%clk 0:01:41]} 27. Bg4 {[%clk 0:01:10]}  Kf7 {[%clk 0:01:33]} 28. Kg1 {[%clk 0:01:09]}  Rb2 {[%clk 0:01:34]} 29. Rf1+ {[%clk 0:00:57]}  Ke7 {[%clk 0:01:34]} 30. Rf2 {[%clk 0:00:58]}  Rxf2 {[%clk 0:01:32]} 31. Kxf2 {[%clk 0:00:58]}  Ra6 {[%clk 0:01:32]} 32. Bd1 {[%clk 0:00:51]}  a3 {[%clk 0:01:31]} 33. Ke3 {[%clk 0:00:48]}  Rb6 {[%clk 0:01:31]} 34. Bb3 {[%clk 0:00:49]}  Rxb3+ {[%clk 0:01:31]} 0-1


[Site "https://www.chess.com"]

[Event "Titled Tuesday Blitz March 14 Early 2023"]
[White "Pakleza, Zbigniew"]
[Black "Tan, Zhongyi"]
[WhiteFideId "1119290"]
[BlackFideId "8603642"]
[WhiteElo "2410"]
[BlackElo "2519"]
[Result "1-0"]
[Round "11"]
[TimeControl "180+2"]
[Date "2023.03.14"]
[WhiteClock "0:00:11"]
[BlackClock "0:00:01"]

1. d4 {[%clk 0:03:00]}  d5 {[%clk 0:02:59]} 2. Bf4 {[%clk 0:03:00]}  Nf6 {[%clk 0:02:58]} 3. e3 {[%clk 0:03:00]}  Bg4 {[%clk 0:02:58]} 4. Be2 {[%clk 0:03:00]}  Bxe2 {[%clk 0:02:57]} 5. Nxe2 {[%clk 0:03:01]}  e6 {[%clk 0:02:57]} 6. Nd2 {[%clk 0:03:01]}  Bd6 {[%clk 0:02:54]} 7. c4 {[%clk 0:03:02]}  O-O {[%clk 0:02:53]} 8. Qb3 {[%clk 0:03:01]}  b6 {[%clk 0:02:40]} 9. Rc1 {[%clk 0:02:57]}  Nbd7 {[%clk 0:02:16]} 10. Bxd6 {[%clk 0:02:49]}  cxd6 {[%clk 0:02:15]} 11. O-O {[%clk 0:02:50]}  dxc4 {[%clk 0:02:12]} 12. Nxc4 {[%clk 0:02:50]}  d5 {[%clk 0:02:12]} 13. Na3 {[%clk 0:02:05]}  Ne4 {[%clk 0:02:07]} 14. Rc2 {[%clk 0:01:59]}  Rc8 {[%clk 0:02:05]} 15. Rfc1 {[%clk 0:01:56]}  Rxc2 {[%clk 0:01:59]} 16. Qxc2 {[%clk 0:01:54]}  Ndf6 {[%clk 0:01:42]} 17. f3 {[%clk 0:01:15]}  Nd6 {[%clk 0:01:41]} 18. Qc7 {[%clk 0:01:15]}  h6 {[%clk 0:01:11]} 19. Kf2 {[%clk 0:01:04]}  b5 {[%clk 0:00:57]} 20. Qxd8 {[%clk 0:00:47]}  Rxd8 {[%clk 0:00:57]} 21. Rc6 {[%clk 0:00:42]}  b4 {[%clk 0:00:54]} 22. Nc2 {[%clk 0:00:35]}  a5 {[%clk 0:00:45]} 23. Nc1 {[%clk 0:00:32]}  Nfe8 {[%clk 0:00:17]} 24. Ke2 {[%clk 0:00:30]}  Kf8 {[%clk 0:00:09]} 25. Ra6 {[%clk 0:00:24]}  Rc8 {[%clk 0:00:08]} 26. Kd1 {[%clk 0:00:23]}  Nc4 {[%clk 0:00:07]} 27. b3 {[%clk 0:00:21]}  Na3 {[%clk 0:00:02]} 28. Nxa3 {[%clk 0:00:19]}  bxa3 {[%clk 0:00:03]} 29. Rxa5 {[%clk 0:00:20]}  Nd6 {[%clk 0:00:02]} 30. Kd2 {[%clk 0:00:17]}  Nf5 {[%clk 0:00:02]} 31. Nd3 {[%clk 0:00:14]}  Nh4 {[%clk 0:00:02]} 32. Ne1 {[%clk 0:00:14]}  e5 {[%clk 0:00:01]} 33. dxe5 {[%clk 0:00:12]}  Re8 {[%clk 0:00:01]} 34. f4 {[%clk 0:00:11]}  f6 {[%clk 0:00:01]} 35. g3 {[%clk 0:00:11]} 1-0


[Site "https://www.chess.com"]

[Event "Titled Tuesday Blitz March 14 Early 2023"]
[White "Krysa, Leandro"]
[Black "Tarasova, Viktoriya"]
[WhiteFideId "116807"]
[BlackFideId "4175840"]
[WhiteElo "2485"]
[BlackElo "2182"]
[Result "1-0"]
[Round "11"]
[TimeControl "180+2"]
[Date "2023.03.14"]
[WhiteClock "0:01:28"]
[BlackClock "0:00:49"]

1. e4 {[%clk 0:03:00]}  e5 {[%clk 0:02:57]} 2. Nf3 {[%clk 0:03:01]}  Nc6 {[%clk 0:02:56]} 3. d4 {[%clk 0:03:01]}  exd4 {[%clk 0:02:55]} 4. Nxd4 {[%clk 0:03:01]}  Nf6 {[%clk 0:02:55]} 5. Nxc6 {[%clk 0:03:01]}  bxc6 {[%clk 0:02:55]} 6. e5 {[%clk 0:03:01]}  Qe7 {[%clk 0:02:54]} 7. Qe2 {[%clk 0:03:02]}  Nd5 {[%clk 0:02:55]} 8. Nd2 {[%clk 0:03:02]}  Qe6 {[%clk 0:02:46]} 9. g3 {[%clk 0:02:47]}  a5 {[%clk 0:02:41]} 10. Bg2 {[%clk 0:02:25]}  Ba6 {[%clk 0:02:39]} 11. c4 {[%clk 0:02:25]}  Nb6 {[%clk 0:02:35]} 12. b3 {[%clk 0:02:20]}  Bb4 {[%clk 0:02:33]} 13. O-O {[%clk 0:02:17]}  O-O {[%clk 0:02:33]} 14. Bb2 {[%clk 0:02:15]}  d5 {[%clk 0:02:30]} 15. Nf3 {[%clk 0:02:02]}  c5 {[%clk 0:02:14]} 16. a3 {[%clk 0:01:47]}  dxc4 {[%clk 0:02:11]} 17. axb4 {[%clk 0:01:44]}  c3 {[%clk 0:02:03]} 18. b5 {[%clk 0:01:37]}  cxb2 {[%clk 0:01:56]} 19. Qxb2 {[%clk 0:01:37]}  Bb7 {[%clk 0:01:13]} 20. Ng5 {[%clk 0:01:30]}  Qc8 {[%clk 0:00:56]} 21. Bxb7 {[%clk 0:01:30]}  Qxb7 {[%clk 0:00:56]} 22. Qc2 {[%clk 0:01:30]}  g6 {[%clk 0:00:54]} 23. Ne4 {[%clk 0:01:28]}  Qd5 {[%clk 0:00:49]} 24. Nf6+ {[%clk 0:01:28]} 1-0


[Site "https://www.chess.com"]

[Event "Titled Tuesday Blitz March 14 Early 2023"]
[White "Dzhumagaliev, Yan"]
[Black "Karttunen, Mika"]
[WhiteFideId "24100110"]
[BlackFideId "502081"]
[WhiteElo "2476"]
[BlackElo "2396"]
[Result "1-0"]
[Round "11"]
[TimeControl "180+2"]
[Date "2023.03.14"]
[WhiteClock "0:01:06"]
[BlackClock "0:00:11"]

1. h4 {[%clk 0:02:58]}  Nf6 {[%clk 0:02:59]} 2. h5 {[%clk 0:02:59]}  h6 {[%clk 0:02:59]} 3. d4 {[%clk 0:03:00]}  d5 {[%clk 0:02:58]} 4. Nf3 {[%clk 0:03:01]}  Bg4 {[%clk 0:02:58]} 5. Ne5 {[%clk 0:03:01]}  Be6 {[%clk 0:02:46]} 6. Bf4 {[%clk 0:02:59]}  Nbd7 {[%clk 0:02:45]} 7. e3 {[%clk 0:03:00]}  Nxe5 {[%clk 0:02:44]} 8. dxe5 {[%clk 0:03:00]}  Ne4 {[%clk 0:02:40]} 9. f3 {[%clk 0:02:47]}  Nc5 {[%clk 0:02:40]} 10. b4 {[%clk 0:02:45]}  Nd7 {[%clk 0:02:36]} 11. Nc3 {[%clk 0:02:38]}  c6 {[%clk 0:02:36]} 12. e4 {[%clk 0:02:38]}  Nb6 {[%clk 0:02:32]} 13. a4 {[%clk 0:02:33]}  a5 {[%clk 0:02:06]} 14. b5 {[%clk 0:02:33]}  d4 {[%clk 0:02:05]} 15. Nb1 {[%clk 0:02:28]}  c5 {[%clk 0:02:03]} 16. c3 {[%clk 0:02:17]}  Rc8 {[%clk 0:01:48]} 17. Be2 {[%clk 0:02:13]}  g5 {[%clk 0:01:34]} 18. hxg6 {[%clk 0:02:04]}  fxg6 {[%clk 0:01:34]} 19. Qd2 {[%clk 0:01:56]}  dxc3 {[%clk 0:01:03]} 20. Nxc3 {[%clk 0:01:54]}  Qxd2+ {[%clk 0:01:02]} 21. Bxd2 {[%clk 0:01:54]}  Bb3 {[%clk 0:00:42]} 22. Ra3 {[%clk 0:01:40]}  c4 {[%clk 0:00:41]} 23. Nd5 {[%clk 0:01:40]}  Nxa4 {[%clk 0:00:24]} 24. e6 {[%clk 0:01:36]}  Bg7 {[%clk 0:00:16]} 25. Bxa5 {[%clk 0:01:29]}  c3 {[%clk 0:00:11]} 26. Nc7+ {[%clk 0:01:10]}  Rxc7 {[%clk 0:00:11]} 27. Bxc7 {[%clk 0:01:10]}  c2 {[%clk 0:00:11]} 28. Kd2 {[%clk 0:01:07]}  Bb2 {[%clk 0:00:11]} 29. Rxb3 {[%clk 0:01:07]}  c1=Q+ {[%clk 0:00:10]} 30. Rxc1 {[%clk 0:01:07]}  Bxc1+ {[%clk 0:00:11]} 31. Kxc1 {[%clk 0:01:08]}  Nc5 {[%clk 0:00:12]} 32. Rc3 {[%clk 0:01:06]}  Nxe6 {[%clk 0:00:12]} 33. Be5 {[%clk 0:01:06]}  O-O {[%clk 0:00:11]} 34. Bc4 {[%clk 0:01:06]} 1-0


[Site "https://www.chess.com"]